Cogmind - Beta 15 @@@ ROGUE MODE // 2025.06.21 @ 21:54:22 Player: Skysub Result: Destroyed by Combat Programmer with EMDS Performance ------------- Evolutions (8) 4000 Regions Visited (17) 3400 Robots Destroyed (51) 255 Value Destroyed (1135) 1135 Prototype IDs (57) 1140 Alien Tech Used (3) 600 Bonus (9050) 9050 TOTAL SCORE: 19580 Bonus ------- High Alert Combat Kills 6 Follower Combat Kills 1453 Registered with UFD 300 Met Optimus in HQ 500 Met Zhirov 300 Found Hidden Lab 3000 Hacked Protovariant 500 Pursued by Intercept 1000 Acquired SGEMP 2000 Friendly Fire -9 Cogmind --------- Core Integrity 0/1450 Matter 224/300 Energy 99/100 System Corruption 8% Temperature Cool (0) Movement Core (50) Location -2/Research Parts ------- > --- POWER (2) -------- (None) > --- PROPULSION (8) --- (None) > --- UTILITY (11) ----- Spectral Analyzer Hacking Suite Deep Network Scanner Amulet of Y3-NDR > --- WEAPON (2) ------- (None) > --- INVENTORY (5) ---- Centrium Medium Armor Plating Improved Datajack SGEMP Prototype Peak State ------------ > --- POWER ------------ Light Nuclear Core Particle Reactor > --- PROPULSION ------- Cooled Nuclear Pulse Thruster Field Propulsion Array Field Propulsion Array Diametric Drive Q-thruster Cooled Impulse Thruster > --- UTILITY ---------- Structural Scanner Spectral Analyzer Long-range Sensor Array Advanced Signal Interpreter 0b10 Decoder Chip [Generic] Advanced Cloaking Device Centrium Medium Armor Plating Medium Regenerative Plating Hacking Suite Deep Network Scanner Amulet of Y3-NDR > --- WEAPON ----------- Centrium Greatsword > --- INVENTORY -------- Particle Reactor Micro-nuke Launcher Improved Datajack SGEMP Prototype [Rating: 164] Favorites ----------- Power Deuterium Engine Engine Deuterium Engine Power Core Light Nuclear Core Reactor Light Antimatter Reactor Propulsion Light Treads Treads Light Treads Leg Advanced Myomer Leg Wheel Armored Huge Wheel Hover Unit Linear Gravjet Flight Unit Field Propulsion Array Utility Large Storage Unit Device Deep Structural Scanner Storage Large Storage Unit Processor Improved Signal Interpreter Hackware Makeshift Hacking Suite Protection Medium Armor Plating Weapon Light Assault Rifle Energy Gun Subdweller Laser Ballistic Gun Light Assault Rifle Launcher Grenade Launcher Special Weapon Improved Plasma Cutter Impact Weapon Hammer Slashing Weapon Centrium Greatsword Piercing Weapon Makeshift Spear Special Melee Weapon Improved Datajack Build | -11 -10 -10 -8 -8 -6 -6 -5 -5 -5 -5 -4 -4 -4 -4 -3 -3 -2 ------- Run | Yrd Mat Sub Rec Scr Fac Ext Fac Upp Upp Zhi Pro Fac Arm Lab Res Tes Res Slots Evolved 16 | . . . . . 8 . 2 . . . . 2 . . 2 . 2 Power 1 | . . . . . 1 . . . . . . . . . . . . Propulsion 6 | . . . . . 2 . 1 . . . . . . . 2 . 1 Utility 9 | . . . . . 5 . 1 . . . . 2 . . . . 1 Weapon . | . . . . . . . . . . . . . . . . . . Parts Attached 115 | 6 4 9 3 3 16 11 6 1 6 6 2 6 13 2 6 9 6 Power 17 | 1 1 2 1 1 2 3 . . . 2 . . 3 . . . 1 Engine 8 | 1 1 2 1 1 1 1 . . . . . . . . . . . Core 6 | . . . . . 1 2 . . . 1 . . 2 . . . . Reactor 3 | . . . . . . . . . . 1 . . 1 . . . 1 Propulsion 29 | 2 . 2 . . 3 4 2 . 1 1 1 4 5 . 1 2 1 Treads 4 | 2 . 2 . . . . . . . . . . . . . . . Leg 1 | . . . . . . . . . . 1 . . . . . . . Wheel 4 | . . . . . 3 1 . . . . . . . . . . . Hover 8 | . . . . . . . 2 . 1 . 1 4 . . . . . Flight 12 | . . . . . . 3 . . . . . . 5 . 1 2 1 Utility 53 | 1 3 2 1 1 9 3 2 1 4 3 . 2 4 2 5 7 3 Device 25 | . 1 1 . 1 3 1 2 . 1 . . 2 3 . 5 4 1 Storage 3 | 1 1 . . . . . . . . 1 . . . . . . . Processor 8 | . . . . . 3 1 . . 1 . . . . . . 2 1 Hackware 7 | . . . . . 1 1 . 1 1 1 . . . 1 . 1 . Protection 10 | . 1 1 1 . 2 . . . 1 1 . . 1 1 . . 1 Artifact . | . . . . . . . . . . . . . . . . . . Weapon 16 | 2 . 3 1 1 2 1 2 . 1 . 1 . 1 . . . 1 Energy Gun 1 | . . . 1 . . . . . . . . . . . . . . Energy Cannon . | . . . . . . . . . . . . . . . . . . Ballistic Gun 4 | 2 . . . . 1 . . . . . 1 . . . . . . Ballistic Cannon . | . . . . . . . . . . . . . . . . . . Launcher 4 | . . 2 . . . . . . 1 . . . . . . . 1 Special Weapon 1 | . . . . . . . 1 . . . . . . . . . . Impact Weapon 2 | . . 1 . . . . 1 . . . . . . . . . . Slashing Weapon 2 | . . . . . 1 . . . . . . . 1 . . . . Piercing Weapon 1 | . . . . 1 . . . . . . . . . . . . . Special Melee Weapon 1 | . . . . . . 1 . . . . . . . . . . . Unidentified Prototypes 27 | . . 1 . . . 1 1 . 2 5 . . 5 3 3 3 3 Corrupted Parts 1 | . . . . . . . . . . . 1 . . . . . . System Corruption 9 | . . . . . . . . . . . 9 . . . . . . Parts Lost 58 | . 3 3 . . 2 8 . . 3 . . 17 . 1 2 2 17 Power 8 | . 1 1 . . 1 1 . . . . . 1 . . . 1 2 Propulsion 18 | . 1 . . . . 2 . . 1 . . 6 . . 1 1 6 Utility 20 | . . . . . 1 2 . . 1 . . 7 . 1 1 . 7 Weapon 12 | . 1 2 . . . 3 . . 1 . . 3 . . . . 2 Highest Loss Streak 17 | . 2 1 . . 2 5 . . 3 . . 17 . 1 1 2 17 To Critical Strikes . | . . . . . . . . . . . . . . . . . . Average Backups 8 | 2 5 11 13 6 9 10 3 3 2 3 3 2 2 2 4 3 2 Power 1 | . . 2 3 1 . . . . . . . . . 1 1 . . Propulsion 1 | . 1 2 2 . 1 3 . . . . . . . 1 . . . Utility 2 | . 1 3 5 2 4 3 . 1 1 1 1 1 1 . 1 1 . Weapon 1 | . 2 3 2 1 . 1 1 1 1 1 1 . . . 1 . . Tool/Special . | . . . . . . . . . . . . . . . . . . Unused Backups 15 | . . 2 . 6 2 . . . . 1 . . 1 . . 1 2 Power 3 | . . . . 2 . . . . . . . . . . . . 1 Propulsion 3 | . . 1 . 2 . . . . . . . . . . . . . Utility 4 | . . . . 1 2 . . . . 1 . . . . . . . Weapon 4 | . . 1 . 1 . . . . . . . . 1 . . 1 . Tool/Special 1 | . . . . . . . . . . . . . . . . . 1 Average Slot Usage (%) 81 | . 89 80 100 77 82 63 71 84 86 89 94 84 39 65 71 82 73 Engine 8 | . 13 6 14 12 5 1 . . . . . . . . . . . Core 1 | . . . . . 5 2 9 10 10 10 10 8 2 5 . 2 2 Treads 19 | . 25 26 28 25 9 . . . . . . . . . . . . Wheel 1 | . . . . . 7 11 . . . . . . . . . . . Hover 1 | . . . . . . . 4 10 12 15 19 22 . . . . . Flight 2 | . . . . . . . 15 15 12 9 10 1 13 21 21 25 21 Device 8 | . 8 12 . 4 8 3 13 10 13 15 15 17 7 15 22 19 17 Storage 10 | . 14 14 14 12 6 5 . . . . . . . . . . . Processor 3 | . . . . . 10 13 15 15 13 10 10 9 5 5 4 10 12 Hackware 2 | . . . . . 5 6 10 14 13 15 15 12 5 6 4 8 8 Protection 4 | . 2 1 14 4 6 6 . . 2 5 5 3 1 6 7 4 3 Energy Gun 3 | . . . 12 6 . . . . . . . . . . . . . Ballistic Gun 6 | . 25 2 14 7 6 . . . . . . 3 . . . . . Launcher 1 | . . 4 . . . . . . 1 5 4 . . . . . . Impact Weapon 3 | . . 12 1 . . . 3 5 5 5 5 3 . . . . . Peak Build Rating 164 | 6 7 16 18 18 61 59 83 93 98 107 109 125 101 116 147 151 164 Average Rating 31 | 5 6 10 16 12 45 51 75 88 92 100 108 113 65 104 132 141 137 On Entrance 63 | . 6 5 16 16 18 58 53 83 89 98 103 109 15 97 110 134 133 Naked Turns 96 | . . . . 96 . . . . . . . . . . . . . Heaviest Build 63 | 11 31 32 41 41 63 58 17 19 26 26 25 26 32 35 45 41 42 Greatest Support 62 | 40 40 40 40 40 56 56 17 18 29 29 40 62 36 35 51 57 58 Greatest Overweight (x) 9 | 1 1 1 1 9 5 1 1 1 1 8 . 2 . 1 . . 9 Average Overweight (x) . | . . . . . 2 . . . . . . . . . . . . Largest Inventory Capacity 15 | 8 15 15 15 15 15 15 5 5 5 5 5 5 5 5 5 5 5 Average Capacity 12 | 7 14 15 15 14 15 14 5 5 5 5 5 5 5 5 5 5 5 Most Carried 15 | 3 8 15 15 15 15 15 5 5 5 5 5 5 5 5 5 5 5 Average Carried 9 | 2 5 12 14 6 12 13 4 4 4 4 5 4 4 3 4 4 4 Final Capacity 15 | 8 15 15 15 15 15 5 5 5 5 5 5 5 5 5 5 5 5 Final Carried 15 | 3 8 14 15 15 14 5 5 5 5 5 5 5 3 5 5 5 4 Class Distribution -------------------- 78% | Mutant 8% | Hacker-Scout 3% | Hacker-Ninja Dominant Class ---------------- Mutant | -10/Materials Mutant | -10/Subcaves Mutant | -8/Recycling Mutant | -8/Scraptown Derelict-Assassin | -6/Factory Mutant | -6/Extension Hacker-Scout | -5/Factory Hacker-Scout | -5/Upper Caves Hacker-Scout | -5/Upper Caves Hacker-Scout | -5/Zhirov Hacker-Scout | -4/Proximity Caves Hacker-Scout | -4/Factory Scavenger-Sprinter | -4/Armory Hacker-Sprinter | -4/Lab Hacker-Sprinter | -3/Research Hacker-Ninja | -3/Testing Hacker-Ninja | -2/Research Resources | -11 -10 -10 -8 -8 -6 -6 -5 -5 -5 -5 -4 -4 -4 -4 -3 -3 -2 ----------- Run | Yrd Mat Sub Rec Scr Fac Ext Fac Upp Upp Zhi Pro Fac Arm Lab Res Tes Res Matter Collected 2260 | 238 239 198 46 60 95 383 . 80 115 . 170 121 190 . 133 192 . Remotely . | . . . . . . . . . . . . . . . . . . Salvage Created 1483 | 49 372 81 55 . 137 173 . . 38 . . 215 . . 27 60 276 Parts 88 | 2 41 4 1 . 9 8 . . 1 . . 13 . . 1 1 7 Haulers Intercepted 1 | . 1 . . . . . . . . . . . . . . . . Recyclers Shooed 2 | 1 . . . . . . . . . . . . . . . . 1 Parts Field Recycled . | . . . . . . . . . . . . . . . . . . Retrieved Matter . | . . . . . . . . . . . . . . . . . . Parts Self-Destructed 33 | . . 17 . . . . . . 7 . 9 . . . . . . Prevented 13 | . . . . . . . . . 4 . 9 . . . . . . Kills | -11 -10 -10 -8 -8 -6 -6 -5 -5 -5 -5 -4 -4 -4 -4 -3 -3 -2 ------- Run | Yrd Mat Sub Rec Scr Fac Ext Fac Upp Upp Zhi Pro Fac Arm Lab Res Tes Res Combat Hostiles Destroyed 32 | . 13 3 2 . 2 . . . 4 . . 7 . . . 1 . Melee 3 | . . . . . 2 . . . . . . . . . . 1 . Guns 17 | . 13 . 2 . . . . . . . . 2 . . . . . AOE 11 | . . 3 . . . . . . 4 . . 4 . . . . . Classes Destroyed 14 | 1 6 2 1 . 1 2 . . . . . 1 . . . . . Worker 3 | . 1 . . . . . . . . . . 1 . . . . 1 Builder 6 | . 2 . . . 1 . . . . . . . . . 2 . 1 Tunneler 3 | 3 . . . . . . . . . . . . . . . . . Hauler 1 | . 1 . . . . . . . . . . . . . . . . Recycler 4 | . 1 . . . . 1 . . . . . . . . . . 2 Operator 1 | . . . . . . 1 . . . . . . . . . . . Watcher 1 | . . . . . . 1 . . . . . . . . . . . Swarmer 21 | . 11 . 1 . . . . . 4 . . 5 . . . . . Grunt 4 | . 2 . . . 1 . . . . . . 1 . . . . . Duelist 1 | . . . . . 1 . . . . . . . . . . . . Sentry 1 | . . . . . . . . . . . . 1 . . . . . Programmer 2 | . . . 1 . . . . . . . . . . . . 1 . Cobbler 1 | . . 1 . . . . . . . . . . . . . . . Subdweller 3 | . . 3 . . . . . . . . . . . . . . . Best Kill Streak 6 | 2 6 2 1 . 2 1 . . 4 . . 5 . . 2 1 4 Combat Bots Only 5 | . 4 2 1 . 2 . . . 4 . . 5 . . . 1 . Max Kills in Single Turn 4 | 1 1 1 1 . 1 1 . . 4 . . 4 . . 1 1 4 Gunslinging . | . . . . . . . . . . . . . . . . . . Exploded 4 | . . 1 . . . . . . 4 . . 4 . . . . . Melee 1 | . . . . . 1 . . . . . . . . . . 1 . Uniques/NPCs Destroyed . | . . . . . . . . . . . . . . . . . . Combat | -11 -10 -10 -8 -8 -6 -6 -5 -5 -5 -5 -4 -4 -4 -4 -3 -3 -2 -------- Run | Yrd Mat Sub Rec Scr Fac Ext Fac Upp Upp Zhi Pro Fac Arm Lab Res Tes Res Hostile Shots Fired 933 | . 113 21 8 . 20 315 2 . 10 . 15 158 4 6 24 67 170 Missed 314 | . 32 7 1 . 7 116 2 . 5 . 5 65 1 1 9 33 30 Hits 619 | . 81 14 7 . 13 199 . . 5 . 10 93 3 5 15 34 140 Melee 3 | . . . . . 1 . . . . . . . 2 . . . . Projectile 616 | . 81 14 7 . 12 199 . . 5 . 10 93 1 5 15 34 140 AOE 2 | . . 1 . . . 1 . . . . . . . . . . . Critical Strikes 18 | . 1 . . . 2 4 . . . . . 3 . 1 . 1 6 Actively Blocked 1 | . . . . . . . . . . . . 1 . . . . . Part Disruptions 1 | . . . . . . . . . . . . . . 1 . . . Damage Taken 10153 | . 679 403 86 . 481 2262 . . 174 . 291 1824 21 137 355 665 2775 Core 3399 | . 121 65 37 . 68 540 . . 22 . 162 720 21 . 63 129 1451 Absorbed by Shields 132 | . . . . . 8 124 . . . . . . . . . . . Redirected to Shielding 196 | . . . . . . . . . . . 47 149 . . . . . Ignored by Resistances 64 | . . . . . . . . . . . . . . . 64 . . Regen/Repaired (Parts) 171 | . . . . . . . . . . . . . . 3 25 54 89 Core Remaining (%) 59 | 100 . . . 10 . 28 . . . . 81 . . 58 . 79 . Volleys Fired 109 | 8 59 8 9 . 5 2 . . 1 . 1 13 . . . . 3 Largest 2 | 2 2 2 2 . 1 1 . . 1 . 1 1 . . . . 1 Hottest 80 | 40 40 50 80 . 28 28 . . 50 . 50 50 . . . . 49 Shots Fired 171 | 16 111 9 10 . 5 2 . . 1 . 1 13 . . . . 3 Gun 159 | 16 111 3 10 . 5 2 . . . . . 12 . . . . . Cannon . | . . . . . . . . . . . . . . . . . . Launcher 12 | . . 6 . . . . . . 1 . 1 1 . . . . 3 Special . | . . . . . . . . . . . . . . . . . . Kinetic 158 | 16 111 3 9 . 5 2 . . . . . 12 . . . . . Thermal 1 | . . . 1 . . . . . . . . . . . . . . Explosive 12 | . . 6 . . . . . . 1 . 1 1 . . . . 3 Electromagnetic . | . . . . . . . . . . . . . . . . . . Robot Hit Streak 7 | 4 7 5 5 . 1 1 . . . . 1 4 . . . . 1 Robot Miss Streak 11 | 3 6 1 2 . 4 1 . . 10 . 11 2 . . . . 2 Penetration Max . | . . . . . . . . . . . . . . . . . . Secondary Targets 4 | . 4 . . . . . . . . . . . . . . . . Max Gunslinging Chain 1 | . 1 . . . . . . . . . . . . . . . . Shots Hit Robots 130 | 11 56 5 6 . 7 25 . . . . 1 10 . . 2 1 6 Core Hits 81 | 5 24 6 4 . 4 4 . . 6 . 2 11 . . 2 1 12 Critical Kills . | . . . . . . . . . . . . . . . . . . Critical Parts Destroyed . | . . . . . . . . . . . . . . . . . . Critical Strikes 6 | . . . . . 2 1 . . . . . . . . . . 3 Sever 6 | . . . . . 2 1 . . . . . . . . . . 3 Melee Attacks 130 | . . 29 . . 23 27 3 . 1 . 1 8 2 4 11 8 13 Impact 42 | . . 29 . . . . 3 . 1 . 1 8 . . . . . Slashing 62 | . . . . . 14 10 . . . . . . 2 4 11 8 13 Piercing 9 | . . . . . 9 . . . . . . . . . . . . Sneak Attacks 27 | . . 2 . . 1 20 . . . . . 1 . . 2 . 1 Combat Hostiles 1 | . . . . . . 1 . . . . . . . . . . . Follow-up Attacks . | . . . . . . . . . . . . . . . . . . Damage Inflicted 4586 | 113 609 377 86 . 295 450 . . 394 . 223 759 . . 283 100 897 Guns 982 | 107 580 17 64 . 23 18 . . . . . 173 . . . . . Cannons . | . . . . . . . . . . . . . . . . . . Explosions 1656 | . . 256 . . . . . . 394 . 223 309 . . . . 474 Melee 1847 | . . 104 . . 272 398 . . . . . 277 . . 283 100 413 Ramming 101 | 6 29 . 22 . . 34 . . . . . . . . . . 10 Kinetic 982 | 107 580 17 64 . 23 18 . . . . . 173 . . . . . Thermal . | . . . . . . . . . . . . . . . . . . Explosive 1656 | . . 256 . . . . . . 394 . 223 309 . . . . 474 Electromagnetic . | . . . . . . . . . . . . . . . . . . Impact 381 | . . 104 . . . . . . . . . 277 . . . . . Slashing 1402 | . . . . . 208 398 . . . . . . . . 283 100 413 Piercing 64 | . . . . . 64 . . . . . . . . . . . . Highest Corruption 9 | . . . 1 . 8 9 . . . . 9 . . 2 . 2 7 Average Corruption 2 | . . . 1 . 8 8 . . . . 9 . . 2 . 1 3 Corruption Purged . | . . . . . . . . . . . . . . . . . . Corruption Blocked . | . . . . . . . . . . . . . . . . . . Effects 32 | . . . 9 . 2 17 . . . . . . . . . 4 . Message Errors 6 | . . . 4 . 1 1 . . . . . . . . . . . Matter Fused 4 | . . . 2 . . 2 . . . . . . . . . . . Heat Flow Errors 4 | . . . . . . 3 . . . . . . . . . 1 . Energy Discharges 5 | . . . . . 1 4 . . . . . . . . . . . Parts Rejected 3 | . . . . . . 2 . . . . . . . . . 1 . Data Loss (minor) 4 | . . . 1 . . 2 . . . . . . . . . 1 . Data Loss (major) 3 | . . . 1 . . 1 . . . . . . . . . 1 . Alerts 3 | . . . 1 . . 2 . . . . . . . . . . . Overload Shots . | . . . . . . . . . . . . . . . . . . Overflow Damage 246 | . . 10 . . . 45 . . 15 . . 124 . . . . 52 Projectiles . | . . . . . . . . . . . . . . . . . . Explosions 35 | . . . . . . . . . 15 . . 6 . . . . 14 Melee 211 | . . 10 . . . 45 . . . . . 118 . . . . 38 Knockbacks 4 | . 1 2 . . . . . . . . . 1 . . . . . Impact 4 | . 1 2 . . . . . . . . . 1 . . . . . Kinetic . | . . . . . . . . . . . . . . . . . . Secondary . | . . . . . . . . . . . . . . . . . . Self-Inflicted Damage 201 | . . . . . . 16 . . 91 . . 19 . . . . 75 Shots 6 | . . . . . . . . . 4 . . 1 . . . . 1 Rammed 18 | 3 7 . 4 . . 3 . . . . . . . . . . 1 Targets Rammed 20 | 3 9 . 4 . . 3 . . . . . . . . . . 1 Kicked . | . . . . . . . . . . . . . . . . . . Crushed 2 | . 2 . . . . . . . . . . . . . . . . Highest Temperature 291 | . 13 . 40 . 7 259 . . . . 21 132 . . . 291 2 Average Temperature 76 | . 5 . 21 . 7 87 . . . . 4 70 . . . 160 2 Received Heat Transfer 1122 | . 42 24 . . 108 753 . . 18 . 27 66 . . 54 21 9 Effects 2 | . . . . . . . . . . . . . . . . 2 . Energy Bleed 2 | . . . . . . . . . . . . . . . . 2 . Siege Activations . | . . . . . . . . . . . . . . . . . . Martial Activations . | . . . . . . . . . . . . . . . . . . Shielding Activations . | . . . . . . . . . . . . . . . . . . Robots Disrupted . | . . . . . . . . . . . . . . . . . . Combat Hostiles . | . . . . . . . . . . . . . . . . . . Robots Corrupted 2 | . . 1 . . . . . . . . . 1 . . . . . Combat Hostiles 1 | . . . . . . . . . . . . 1 . . . . . Parts Fried 5 | . . 1 . . . . . . . . . 4 . . . . . Impact Corruptions 7 | . . 2 . . . . . . . . . 5 . . . . . Robots Melted . | . . . . . . . . . . . . . . . . . . Combat Hostiles . | . . . . . . . . . . . . . . . . . . Parts Melted . | . . . . . . . . . . . . . . . . . . Heat Transferred . | . . . . . . . . . . . . . . . . . . Parts Sabotaged 2 | . . . . . . . . . . . . . 2 . . . . Parts Stolen . | . . . . . . . . . . . . . . . . . . Parts Stripped . | . . . . . . . . . . . . . . . . . . Power Chain Reactions . | . . . . . . . . . . . . . . . . . . Alert | -11 -10 -10 -8 -8 -6 -6 -5 -5 -5 -5 -4 -4 -4 -4 -3 -3 -2 ------- Run | Yrd Mat Sub Rec Scr Fac Ext Fac Upp Upp Zhi Pro Fac Arm Lab Res Tes Res Maximum Alert Level 2 | . . . . . . . . . . . . 2 . . . . . Low Security (%) 96 | 100 100 . 100 . 100 100 100 . . . . 24 100 . 100 100 100 Level 1 3 | . . . . . . . . . . . . 73 . . . . . Level 2 . | . . . . . . . . . . . . 2 . . . . . Level 3 . | . . . . . . . . . . . . . . . . . . Level 4 . | . . . . . . . . . . . . . . . . . . Level 5 . | . . . . . . . . . . . . . . . . . . High Security . | . . . . . . . . . . . . . . . . . . Max Security . | . . . . . . . . . . . . . . . . . . Peak Influence 412 | 5 100 . 143 . 104 114 47 . . . . 412 188 . 150 114 169 Initial 157 | . . . 73 . . 50 16 . . . . 107 157 . . 58 54 Average 53 | . 54 . 38 . 13 46 26 . . . . 256 142 . 73 59 69 Influence Increases 4028 | 15 357 229 284 . 246 334 82 . 327 . 280 835 111 . 335 248 345 Destroy 0b10 Robot/C 1660 | . 260 160 140 . 60 100 . . 200 . 180 360 20 . 80 60 40 Destroy 0b10 Robot/NC 135 | 15 25 . . . 5 15 . . . . 5 20 . . 10 . 40 Destroy Leader 278 | . 42 10 . . 20 12 . . 20 . 20 72 . . 30 30 22 Allied During Kill 353 | . . 59 19 . 3 26 . . 47 . 75 118 . . . 4 2 Successful Hack 189 | . . . 5 . 25 28 46 . . . . 17 12 . 22 9 25 Select Force Hacks 150 | . 30 . 120 . . . . . . . . . . . . . . Disable Machine 120 | . . . . . . 15 15 . . . . 15 . . 15 30 30 Destroy Structure 303 | . . . . . 13 3 6 . . . . 68 4 . 28 10 171 Partial Spotted 135 | . . . . . . 30 . . . . . 45 15 . 30 . 15 Lose Combat Pursuer 705 | . . . . . 120 105 15 . 60 . . 120 60 . 120 105 . Influence Decreases 3939 | 15 324 108 438 . 142 403 117 . 170 157 110 683 245 188 230 257 352 Entered New Map 833 | . . 17 81 . . 54 19 . . 157 . 63 165 188 . 47 42 Time Decay 1846 | 15 294 71 317 . 121 190 78 . 130 . 90 120 80 . 90 150 100 Lost Part 510 | . 30 . . . 20 60 . . 20 . . 170 . . 20 20 170 Lost Ally 600 | . . 20 40 . 1 99 20 . 20 . 20 180 . . 120 40 40 Purge Threat 150 | . . . . . . . . . . . . 150 . . . . . Squads Dispatched 41 | . 3 . . . 4 3 . . . . . 10 1 . 4 11 5 Investigation 11 | . 2 . . . 2 . . . . . . 3 . . 1 2 1 Extermination 7 | . . . . . 2 . . . . . . 1 1 . 1 2 . Reinforcement 12 | . 1 . . . . 3 . . . . . 2 . . 2 3 1 Assault 1 | . . . . . . . . . . . . . . . . 1 . Garrison 4 | . . . . . . . . . . . . 4 . . . . . Intercept 6 | . . . . . . . . . . . . . . . . 3 3 Searches Triggered . | . . . . . . . . . . . . . . . . . . Construction Impeded 1 | . . . . . . 1 . . . . . . . . . . . Haulers Reinforced 1 | . . . . . . . . . . . . . . . . . 1 Active Scanning Responses . | . . . . . . . . . . . . . . . . . . Cargo Convoy Interrupts . | . . . . . . . . . . . . . . . . . . Stealth | -11 -10 -10 -8 -8 -6 -6 -5 -5 -5 -5 -4 -4 -4 -4 -3 -3 -2 --------- Run | Yrd Mat Sub Rec Scr Fac Ext Fac Upp Upp Zhi Pro Fac Arm Lab Res Tes Res Distress Signals 12 | . 2 . . . . 1 . . . . . 2 1 . 4 . 2 Communications Jammed . | . . . . . . . . . . . . . . . . . . Distress Signals . | . . . . . . . . . . . . . . . . . . Times Spotted 237 | . 24 15 3 . 12 37 4 . 14 . 9 46 16 1 20 27 9 Peak Tracking Total 19 | . 6 2 3 . 5 19 3 . 6 . 5 17 8 1 13 14 6 Tactical Retreats 18 | . . . . . 4 4 1 . 1 . . 3 1 . 2 2 . Traps | -11 -10 -10 -8 -8 -6 -6 -5 -5 -5 -5 -4 -4 -4 -4 -3 -3 -2 ------- Run | Yrd Mat Sub Rec Scr Fac Ext Fac Upp Upp Zhi Pro Fac Arm Lab Res Tes Res Traps Triggered 9 | . . 2 . . 1 . . . . . . 2 1 . 1 2 . Indirectly . | . . . . . . . . . . . . . . . . . . Trap Hack Attempts . | . . . . . . . . . . . . . . . . . . Triggered . | . . . . . . . . . . . . . . . . . . Disarmed . | . . . . . . . . . . . . . . . . . . Reprogrammed . | . . . . . . . . . . . . . . . . . . Reused . | . . . . . . . . . . . . . . . . . . Traps Extracted . | . . . . . . . . . . . . . . . . . . Installed . | . . . . . . . . . . . . . . . . . . Triggered . | . . . . . . . . . . . . . . . . . . Most Traps Carried 1 | . . . . 1 1 . . . . . . . . . . . . Machines | -11 -10 -10 -8 -8 -6 -6 -5 -5 -5 -5 -4 -4 -4 -4 -3 -3 -2 ---------- Run | Yrd Mat Sub Rec Scr Fac Ext Fac Upp Upp Zhi Pro Fac Arm Lab Res Tes Res Machines Disabled 11 | . . 2 . . . 1 1 . . . . 1 . 1 1 2 2 Max in Single Turn 1 | . . 1 . . . . 1 . . . . . . 1 . 1 1 Garrison Access 2 | . . . . . . . . . . . . . . . 1 . 1 Energy Cycler 1 | . . . . . . 1 . . . . . . . . . . . Machines Repaired . | . . . . . . . . . . . . . . . . . . Machines Dismantled 1 | . . . . . . . 1 . . . . . . . . . . Machines Sabotaged . | . . . . . . . . . . . . . . . . . . Overloaded Fab Kills . | . . . . . . . . . . . . . . . . . . Hacking | -11 -10 -10 -8 -8 -6 -6 -5 -5 -5 -5 -4 -4 -4 -4 -3 -3 -2 --------- Run | Yrd Mat Sub Rec Scr Fac Ext Fac Upp Upp Zhi Pro Fac Arm Lab Res Tes Res Machines Accessed 73 | . 2 1 9 7 6 9 5 . 1 4 1 6 3 . 4 12 3 Terminals 39 | . . . 5 . 3 9 3 . . . 1 3 3 . 2 9 1 Fabricators 1 | . . . . . . . . . . . . . . . . 1 . Repair Stations 2 | . . . . . . . 1 . . . . . . . . 1 . Recycling Units 11 | . 2 . 4 . 2 . . . . . . 1 . . 1 . 1 Scanalyzers . | . . . . . . . . . . . . . . . . . . Garrison Access 7 | . . . . . 1 . 1 . . . . 2 . . 1 1 1 Total Hacks 231 | . 14 1 30 43 15 13 16 . 1 17 1 25 7 . 13 27 8 Successful 155 | . 13 1 15 43 9 9 8 . 1 17 1 12 2 . 8 10 6 Failed 76 | . 1 . 15 . 6 4 8 . . . . 13 5 . 5 17 2 Catastrophic 5 | . . . 2 . . . 2 . . . . . . . . . 1 Database Lockouts . | . . . . . . . . . . . . . . . . . . Manual 83 | . 2 . 24 . 6 6 8 . . . . 15 6 . 5 8 3 Terminals 105 | . . . 18 . 9 13 11 . . . 1 15 7 . 8 21 2 Fabricators 2 | . . . . . . . . . . . . . . . . 2 . Repair Stations 4 | . . . . . . . 2 . . . . . . . . 2 . Recycling Units 40 | . 14 . 12 . 5 . . . . . . 3 . . 3 . 3 Scanalyzers . | . . . . . . . . . . . . . . . . . . Garrison Access 18 | . . . . . 1 . 3 . . . . 7 . . 2 2 3 Terminal Hacks 93 | . . 1 3 43 3 6 4 . 1 17 1 6 . . 3 5 . Record 42 | . . . . 36 . . . . . 5 1 . . . . . . Part Schematic 4 | . . . . . . . . . . 4 . . . . . . . Robot Analysis 10 | . . . . 6 . . . . . 4 . . . . . . . Prototype ID Bank 7 | . . . . . . . 1 . . 4 . . . . . 2 . Open Door 6 | . . . . . . 4 . . 1 . . . . . . 1 . Branch Access Points 1 | . . . . . . . . . . . . 1 . . . . . Emergency Access Points 1 | . . . . . . . . . . . . . . . 1 . . Machine Index 1 | . . . . . . . . . . . . . . . 1 . . Terminal Index 2 | . . . . . . 1 . . . . . 1 . . . . . Recycling Unit Index 2 | . . . 2 . . . . . . . . . . . . . . Alert Level 1 | . . . . . . . . . . . . 1 . . . . . Locate Traps 2 | . . . . . 1 . 1 . . . . . . . . . . Maintenance Status 1 | . . . . . . 1 . . . . . . . . . . . Registered Components 2 | . . . . . 1 . . . . . . 1 . . . . . Registered Prototypes 2 | . . . . . . . . . . . . 1 . . . 1 . Zone Layout 6 | . . . 1 . 1 . 2 . . . . 1 . . 1 . . Proto ID Catalog 2 | . . 1 . 1 . . . . . . . . . . . . . Protovariant Controls 1 | . . . . . . . . . . . . . . . . 1 . Fabricator Hacks 1 | . . . . . . . . . . . . . . . . 1 . Network Status 1 | . . . . . . . . . . . . . . . . 1 . Repair Station Hacks 1 | . . . . . . . 1 . . . . . . . . . . Refit 1 | . . . . . . . 1 . . . . . . . . . . Recycling Unit Hacks 23 | . 12 . 5 . 2 . . . . . . 1 . . 1 . 2 Report Inventory 20 | . 11 . 4 . 2 . . . . . . 1 . . 1 . 1 Retrieve Components 3 | . 1 . 1 . . . . . . . . . . . . . 1 Scanalyzer . | . . . . . . . . . . . . . . . . . . Garrison Access Hacks 2 | . . . . . . . . . . . . . . . 1 . 1 Seal Access 2 | . . . . . . . . . . . . . . . 1 . 1 Unauthorized Hacks 35 | . 1 . 7 . 4 3 3 . . . . 5 2 . 3 4 3 Terminals 23 | . . . 3 . 3 3 3 . . . . 2 2 . 2 4 1 Assimilate 2 | . . . . . . . . . . . . . . . . 2 . Botnet 21 | . . . 3 . 3 3 3 . . . . 2 2 . 2 2 1 Fabricators . | . . . . . . . . . . . . . . . . . . Repair Stations . | . . . . . . . . . . . . . . . . . . Recycling Units 8 | . 1 . 4 . 1 . . . . . . 1 . . . . 1 Tunnel 5 | . 1 . 4 . . . . . . . . . . . . . . Fedlink 3 | . . . . . 1 . . . . . . 1 . . . . 1 Scanalyzers . | . . . . . . . . . . . . . . . . . . Garrison Access 4 | . . . . . . . . . . . . 2 . . 1 . 1 Redirect 2 | . . . . . . . . . . . . . . . 1 . 1 Reprogram 1 | . . . . . . . . . . . . 1 . . . . . Watchers 1 | . . . . . . . . . . . . 1 . . . . . Data Cores Recovered 1 | . . . . . . 1 . . . . . . . . . . . Used 1 | . . . . . . 1 . . . . . . . . . . . Hacking Detections 48 | . 2 . 7 . 4 5 5 . . . . 5 3 . 3 12 2 Full Trace Events 6 | . 1 . 1 . 1 . . . . . . 1 . . 1 1 . Feedback Events . | . . . . . . . . . . . . . . . . . . Feedback Blocked 1 | . . . . . . . . . . . . 1 . . . . . Robot Schematics Acquired . | . . . . . . . . . . . . . . . . . . Robots Built . | . . . . . . . . . . . . . . . . . . Authchips . | . . . . . . . . . . . . . . . . . . Time . | . . . . . . . . . . . . . . . . . . Total Robot Build Rating . | . . . . . . . . . . . . . . . . . . Part Schematics Acquired 4 | . . . . . . . . . . 4 . . . . . . . Parts Built . | . . . . . . . . . . . . . . . . . . Authchips . | . . . . . . . . . . . . . . . . . . Time . | . . . . . . . . . . . . . . . . . . Total Part Build Rating . | . . . . . . . . . . . . . . . . . . Parts Repaired . | . . . . . . . . . . . . . . . . . . Time . | . . . . . . . . . . . . . . . . . . Parts Recycled . | . . . . . . . . . . . . . . . . . . Recycled Matter . | . . . . . . . . . . . . . . . . . . Retrieved Matter . | . . . . . . . . . . . . . . . . . . Retrieved Components 5 | . 3 . 1 . . . . . . . . . . . . . 1 Parts Scanalyzed . | . . . . . . . . . . . . . . . . . . Part Schematics Acquired . | . . . . . . . . . . . . . . . . . . Parts Damaged . | . . . . . . . . . . . . . . . . . . Bothacking | -11 -10 -10 -8 -8 -6 -6 -5 -5 -5 -5 -4 -4 -4 -4 -3 -3 -2 ------------ Run | Yrd Mat Sub Rec Scr Fac Ext Fac Upp Upp Zhi Pro Fac Arm Lab Res Tes Res Used RIF Installer . | . . . . . . . . . . . . . . . . . . Robots Hacked . | . . . . . . . . . . . . . . . . . . Non-combat . | . . . . . . . . . . . . . . . . . . Combat . | . . . . . . . . . . . . . . . . . . Robot Hacks Applied . | . . . . . . . . . . . . . . . . . . Relay Couplers Released . | . . . . . . . . . . . . . . . . . . Fabnet Peak Effective % . | . . . . . . . . . . . . . . . . . . Robots Rewired 8 | . . . . . . 6 1 . . . . . . . . 1 . Allies Hacked 3 | . . . . . . . . . . . . . . . . 3 . Hacks Repelled . | . . . . . . . . . . . . . . . . . . Allies | -11 -10 -10 -8 -8 -6 -6 -5 -5 -5 -5 -4 -4 -4 -4 -3 -3 -2 -------- Run | Yrd Mat Sub Rec Scr Fac Ext Fac Upp Upp Zhi Pro Fac Arm Lab Res Tes Res Total Allies 58 | . . 12 . . . 12 1 . 6 . 3 8 1 . 6 3 6 Largest Group 8 | . . 8 5 2 2 6 1 . 4 3 5 5 1 . 3 3 4 Highest-Rated Group 372 | . . 152 95 38 38 175 30 . 324 243 372 324 79 . 243 238 324 Highest-Rated Ally 159 | . . 19 19 19 19 159 30 . 81 81 81 81 79 . 81 148 81 Total Orders . | . . . . . . . . . . . . . . . . . . Ally Attacks 293 | . . 48 18 . 7 55 . . 15 . 35 64 2 . 17 11 21 Total Damage 8533 | . . 785 396 . 71 1190 . . 641 . 1270 1682 131 . 765 680 922 Kills 66 | . . 10 5 . 1 5 . . 6 . 11 14 1 . 4 2 7 Allies Corrupted 1 | . . . . . . . . . . . . . . . . 1 . Allies Melted 2 | . . . . . 1 . . . . . . . . . . . 1 Intel | -11 -10 -10 -8 -8 -6 -6 -5 -5 -5 -5 -4 -4 -4 -4 -3 -3 -2 ------- Run | Yrd Mat Sub Rec Scr Fac Ext Fac Upp Upp Zhi Pro Fac Arm Lab Res Tes Res Active Infowar (turns) 5654 | . 456 675 . 1109 831 484 183 191 281 81 181 250 164 60 189 309 210 Optics 350 | . . . . . . . . . . . . . . . . 140 210 Sensors 2236 | . . . . . 530 . 146 191 281 81 181 216 . . 102 309 199 Structural 4566 | . 456 675 . 1109 390 252 169 191 281 81 181 197 . . 141 285 158 Decoding 1506 | . . . . . . . . . 69 81 181 250 164 60 189 309 203 Machine Analysis 1898 | . . . . . 830 484 183 191 210 . . . . . . . . Cloaking 714 | . . . . . . . . . . . . . 21 60 189 309 135 Robot Analysis Total 10 | . . . . 6 . . . . . 4 . . . . . . . Derelict Logs Recovered 13 | . . 3 . 5 . . . 2 2 . 1 . . . . . . Drone Launches . | . . . . . . . . . . . . . . . . . . Drone Recoveries . | . . . . . . . . . . . . . . . . . . Decoded 0b10 Intel 33 | . . . . . . . . . . . . 7 4 . 5 9 8 Traps 5 | . . . . . . . . . . . . 1 2 . . 1 1 Emergency Access 1 | . . . . . . . . . . . . 1 . . . . . Items 21 | . . . . . . . . . . . . 4 2 . 3 7 5 Patrols 3 | . . . . . . . . . . . . . . . 1 1 1 Guards 3 | . . . . . . . . . . . . 1 . . 1 . 1 Exploration | -11 -10 -10 -8 -8 -6 -6 -5 -5 -5 -5 -4 -4 -4 -4 -3 -3 -2 ------------- Run | Yrd Mat Sub Rec Scr Fac Ext Fac Upp Upp Zhi Pro Fac Arm Lab Res Tes Res Turns Passed 12532 | 197 747 2973 1392 3783 857 484 183 191 281 81 181 250 164 60 189 309 210 Spaces Moved 10567 | 104 301 1636 632 2330 549 398 425 460 668 145 299 458 392 102 536 734 398 Core 595 | 8 . . . 479 . . . . . 1 . 22 36 . . . 49 Treads 4527 | 96 301 1636 632 1851 11 . . . . . . . . . . . . Legs . | . . . . . . . . . . . . . . . . . . Wheels 906 | . . . . . 538 368 . . . . . . . . . . . Hover 1260 | . . . . . . . 1 10 370 144 299 436 . . . . . Flight 3279 | . . . . . . 30 424 450 298 . . . 356 102 536 734 349 Fastest Speed 15 | 50 160 160 160 50 100 32 32 32 32 38 38 30 26 23 24 15 21 Average Speed 104 | 152 170 167 214 157 132 96 32 33 35 40 38 32 32 35 25 24 28 Slowest Speed 500 | 160 240 240 250 500 165 115 120 116 116 450 38 150 50 103 27 30 500 Overloaded Moves 172 | . . . . . . . . . . . . . . 26 31 113 2 Propulsion Burnouts . | . . . . . . . . . . . . . . . . . . Robots Hopped 27 | . . . . . . 7 4 . . . . . . 1 1 13 1 Potential Cave-ins 2 | . . . . . . . . . . . . . . . . . 2 Cave-ins Triggered 1 | . . . . . 1 . . . . . . . . . . . . Teleports 2 | . . . . . . . . . . . . . 1 . . 1 . Exploration Rate (%) 54 | 9 84 92 95 85 18 74 14 70 81 60 51 18 16 76 30 81 18 Regions Visited 17 Branch Regions 11 Pre-discovered Areas 18 | . 1 2 4 7 . . . . . 3 . 1 . . . . . Known Exits Taken 11 | . . . . 1 1 1 1 1 1 1 1 1 . . 1 1 . Unknown Exits Taken 6 | 1 1 1 1 . . . . . . . . . 1 1 . . . Scrap Searched 17 | . . 7 . 5 . . . 2 3 . . . . . . . . Spaces Dug 51 | . . 1 . . 14 3 3 . 1 . 1 5 2 . 9 5 7 Terrain Destroyed 201 | . . 16 . . 14 3 3 . 41 . 13 29 2 . 9 5 66 Melee 51 | . . 1 . . 14 3 3 . 1 . 1 5 2 . 9 5 7 Projectile . | . . . . . . . . . . . . . . . . . . AOE 150 | . . 15 . . . . . . 40 . 12 24 . . . . 59 Terrain Rammed . | . . . . . . . . . . . . . . . . . . Walls Destroyed . | . . . . . . . . . . . . . . . . . . Machines Disabled . | . . . . . . . . . . . . . . . . . . Actions | -11 -10 -10 -8 -8 -6 -6 -5 -5 -5 -5 -4 -4 -4 -4 -3 -3 -2 --------- Run | Yrd Mat Sub Rec Scr Fac Ext Fac Upp Upp Zhi Pro Fac Arm Lab Res Tes Res Total 11698 | 123 431 1806 654 2459 644 474 458 497 708 164 360 528 421 115 563 830 463 Wait 467 | . 52 101 5 13 8 23 13 27 26 5 58 27 1 4 1 71 32 Move 10504 | 103 300 1635 631 2329 548 388 416 459 667 144 298 457 391 99 533 710 396 Hop 19 | . . . . . . 2 4 . . . . . . 1 1 10 1 Pick Up 102 | 3 5 13 1 42 13 . 2 2 3 1 . . 4 3 2 4 4 Fast Attach 76 | 6 2 2 . 10 5 5 6 2 3 5 1 5 11 3 4 5 1 Attach 56 | . 2 5 . 2 10 12 1 1 4 . . 2 5 1 3 4 4 Detach 38 | . 2 2 . 12 3 5 1 . 3 1 . 3 2 . 2 1 1 Swap 50 | . . 5 3 . 8 3 1 . . 4 1 5 1 . 5 8 6 Drop 103 | . . 6 1 50 13 4 5 4 . 4 . 3 4 . 1 7 1 Fire 109 | 8 59 8 9 . 5 2 . . 1 . 1 13 . . . . 3 Melee 130 | . . 29 . . 23 27 3 . 1 . 1 8 2 4 11 8 13 Ram 4 | . . . . . . 3 . . . . . . . . . . 1 Kick . | . . . . . . . . . . . . . . . . . . Crush 16 | 3 9 . 4 . . . . . . . . . . . . . . Escape Stasis 8 | . . . . . 8 . . . . . . . . . . . . Rewire 10 | . . . . 1 . . 2 . . . . 5 . . . 2 . Trap . | . . . . . . . . . . . . . . . . . . Miscellaneous 6 | . . . . . . . 4 2 . . . . . . . . . Route ------- -11/Scrapyard -10/Materials (discovered 4 exits: [*Mat x2] / [*Min] / *Sub) -10/Subcaves (discovered 3 exits: [*Mat x2] / *Rec) -8/Recycling (discovered 2 exits: *Fac / *Scr) -8/Scraptown (discovered 2 exits: *Fac x2) -6/Factory (discovered 5 exits: Fac x2 / Low / *Ext x2) -6/Extension (discovered 2 exits: *Fac / *Cet) -5/Factory -5/Upper Caves -5/Upper Caves (discovered 2 exits: Fac / *Zhi) -5/Zhirov -4/Proximity Caves -4/Factory (discovered 3 exits: *Upp x2 / *Arm) -4/Armory -4/Lab -3/Research (discovered 3 exits: Res x2 / *Tes) -3/Testing -2/Research (discovered 1 exit: Acc) History --------- Turn | Location | Event 11 | -11/Scrapyard | Discovered new exit (range 16) 198 | -11/Scrapyard | Entered Materials 312 | -10/Materials | Build established: Mutant 424 | -10/Materials | Discovered new exit (range 7) 593 | -10/Materials | Discovered new exit (range 3) 864 | -10/Materials | Discovered new exit (range 8) 874 | -10/Materials | Discovered new exit (range 9) 945 | -10/Materials | Entered Subcaves 1082 | -10/Subcaves | Core integrity fell below 50% 1323 | -10/Subcaves | A swath of the cavern ceiling suddenly collapsed 1603 | -10/Subcaves | Discovered new exit (range 10) 1610 | -10/Subcaves | Visited triangular shrine 1620 | -10/Subcaves | Found Prototype Device 1620 | -10/Subcaves | Identified V3-11A's Pendant 1625 | -10/Subcaves | Befriended Subdweller 1718 | -10/Subcaves | A swath of the cavern ceiling suddenly collapsed 1926 | -10/Subcaves | Visited 4L-MR0's lab 1945 | -10/Subcaves | Found Meta Core 2045 | -10/Subcaves | Befriended Subdweller 2093 | -10/Subcaves | Curiously followed by a Cobbler waking with a query about "LVR3C" 2195 | -10/Subcaves | Befriended Subdweller 2206 | -10/Subcaves | Learned location of Zion (-6) 2600 | -10/Subcaves | Befriended Subdweller 2635 | -10/Subcaves | Befriended Subdweller 2800 | -10/Subcaves | Befriended Subdweller 2805 | -10/Subcaves | Befriended Subdweller 2885 | -10/Subcaves | Befriended Subdweller 3045 | -10/Subcaves | Befriended Subdweller 3046 | -10/Subcaves | Ambushed by Subdweller buried in earth 3050 | -10/Subcaves | Befriended Subdweller 3210 | -10/Subcaves | Befriended Subdweller 3235 | -10/Subcaves | Befriended Subdweller 3291 | -10/Subcaves | Discovered new exit (range 11) 3299 | -10/Subcaves | Shifting Twisted Machinery released Shrapnel Trap 3308 | -10/Subcaves | Shifting Twisted Machinery released Sub. Power Source 3724 | -10/Subcaves | Shifting Twisted Machinery released Mak. Light Armor Plating 3813 | -10/Subcaves | Shifting Twisted Machinery released Mak. Hacking Suite 3850 | -10/Subcaves | Shifting Twisted Machinery released Mak. Laser 3858 | -10/Subcaves | Shifting Twisted Machinery released Sub. Beam Cannon 3892 | -10/Subcaves | Discovered new exit (range 14) 3918 | -10/Subcaves | Entered Recycling 3918 | -8/Recycling | Accompanied by 5 allies 4008 | -8/Recycling | Core integrity fell below 20% 4011 | -8/Recycling | P-60 Hacker assimilated allied 1U-DX8(R) 4492 | -8/Recycling | Scanned before Scraplab entrance 4750 | -8/Recycling | Discovered new exit (range 14) 5285 | -8/Recycling | Entered Scraplab 5305 | -8/Recycling | Discovered new exit (range 3) 5310 | -8/Recycling | Entered Scraptown 5310 | -8/Scraptown | Accompanied by 2 allies 5310 | -8/Scraptown | System corruption cleaned by C-Scrubber 5423 | -8/Scraptown | Delivered V3-11A's Pendant to T0-NE2 in exchange for information 5558 | -8/Scraptown | Visited Spacefarers 5658 | -8/Scraptown | Visited UFD Registry 5658 | -8/Scraptown | Registered with UFD as "Flashsourcer" 5688 | -8/Scraptown | Visited Comm Corps 5800 | -8/Scraptown | Visited Cyclists 5818 | -8/Scraptown | Entered Cyclist Reading Room 5875 | -8/Scraptown | Visited Awakened 5928 | -8/Scraptown | Visited Fellowship of the Rings 6085 | -8/Scraptown | Scanned Subdweller tech in exchange for log data 6090 | -8/Scraptown | Learned Factory emergency access door positions 6093 | -8/Scraptown | Learned Research garrison access intel 6095 | -8/Scraptown | Learned location of Extension (-6) 6098 | -8/Scraptown | Learned 8 Factory zone layouts 6136 | -8/Scraptown | Discovered new exit (range 13) 6568 | -8/Scraptown | Visited Derelict Rescue Squad 6578 | -8/Scraptown | Found DRS Beacon 6608 | -8/Scraptown | Visited Scrap Suit Storage 6700 | -8/Scraptown | Visited Scrapoid Research Area 6770 | -8/Scraptown | Delivered Scrap Shield to a Scientist 6854 | -8/Scraptown | Visited Analyses Database 6891 | -8/Scraptown | Visited Observation Area 6921 | -8/Scraptown | Visited Science Guys 7012 | -8/Scraptown | Visited Botcube Research 7018 | -8/Scraptown | Found Botcube 7092 | -8/Scraptown | Visited Cartography Club 7146 | -8/Scraptown | Learned location of Recycling (-8) 7146 | -8/Scraptown | Learned location of Lower Caves (-7) 7146 | -8/Scraptown | Learned location of Upper Caves (-5) 7146 | -8/Scraptown | Learned location of Armory (-4) 7146 | -8/Scraptown | Learned 16 Materials zone layouts 7146 | -8/Scraptown | Learned 24 Factory zone layouts 7146 | -8/Scraptown | Learned 8 Lower Caves zone layouts 7146 | -8/Scraptown | Learned 16 Lower Caves zone layouts 7146 | -8/Scraptown | Learned 12 Lower Caves zone layouts 7146 | -8/Scraptown | Learned 20 Lower Caves zone layouts 7146 | -8/Scraptown | Learned 8 Upper Caves zone layouts 7146 | -8/Scraptown | Learned 12 Upper Caves zone layouts 7146 | -8/Scraptown | Learned 16 Proximity Caves zone layouts 7146 | -8/Scraptown | Learned location of 2 exits from Research 7146 | -8/Scraptown | Learned location of 3 exits from Lower Caves 7146 | -8/Scraptown | Learned location of 1 exit from Upper Caves 7146 | -8/Scraptown | Identified exit to Factory 7165 | -8/Scraptown | Found Deep Structural Scanner 7493 | -8/Scraptown | Visited Cave Peace 7540 | -8/Scraptown | Visited Symbiants 8995 | -8/Scraptown | Met Optimus 8995 | -8/Scraptown | Accepted into 0bPrime 9093 | -8/Scraptown | Entered Factory 9093 | -6/Factory | Accompanied by 2 allies 9093 | -6/Factory | Evolved 8 slots: Power x1, Propulsion x2, Utility x5 9094 | -6/Factory | Identified exit to Lower Caves 9095 | -6/Factory | Identified exit to Extension 9095 | -6/Factory | Identified exit to Factory 9697 | -6/Factory | Build established: Derelict-Assassin 9754 | -6/Factory | Loaded intel: 8 recycling unit locations 9889 | -6/Factory | Crushed by falling debris 9941 | -6/Factory | Discovered exit to Extension (range 9) 9950 | -6/Factory | Entered Extension 9986 | -6/Extension | Rescued a captive Derelict 9987 | -6/Extension | Rescued a captive Derelict 10166 | -6/Extension | Rescued a captive Derelict 10208 | -6/Extension | Spotted B-75 Beast 10217 | -6/Extension | Spotted B-75 Beast 10223 | -6/Extension | Build established: Mutant 10305 | -6/Extension | Lost 7 allies 10315 | -6/Extension | Rescued a captive Derelict 10316 | -6/Extension | Rescued a captive Derelict 10381 | -6/Extension | Rescued A7 10395 | -6/Extension | Core integrity fell below 50% 10402 | -6/Extension | Energy Cycler disabled 10421 | -6/Extension | Attached Meta Core, gained temporary slots: Propulsion, Utility, Weapon 10425 | -6/Extension | Lost 5 parts (2n1u2w) 10425 | -6/Extension | Extracted ID and sensor layout for unrecognized location from A7's data core 10431 | -6/Extension | Discovered exit to Factory (range 10) 10431 | -6/Extension | Discovered new exit (range 6) 10433 | -6/Extension | Identified exit to Cetus 10434 | -6/Extension | Entered Factory 10434 | -5/Factory | Evolved 2 slots: Propulsion x1, Utility x1 10480 | -5/Factory | Found Prototype Launcher 10606 | -5/Factory | Discovered new exit (range 9) 10608 | -5/Factory | Identified exit to Upper Caves 10617 | -5/Factory | Entered Upper Caves 10618 | -5/Upper Caves | Identified exit to Upper Caves 10619 | -5/Upper Caves | UFD Scientist delivered a prototype 10621 | -5/Upper Caves | Activated DRS Beacon 10623 | -5/Upper Caves | Found Prototype Protection 10731 | -5/Upper Caves | Learned 8 Factory zone layouts 10749 | -5/Upper Caves | Encountered a Warlord checkpoint 10753 | -5/Upper Caves | Build established: Hacker-Scout 10757 | -5/Upper Caves | Learned Factory terminal intel 10808 | -5/Upper Caves | Entered another Upper Caves area 10822 | -5/Upper Caves | Identified exit to Factory 10848 | -5/Upper Caves | Learned 4 Factory zone layouts 10905 | -5/Upper Caves | Prototype Device suddenly appears! 10906 | -5/Upper Caves | Found Prototype Device 10906 | -5/Upper Caves | Identified Amulet of Y3-NDR 10922 | -5/Upper Caves | Attracted the attention of an 0b10 checkpoint 10930 | -5/Upper Caves | Joined by bewildered Wizard 10933 | -5/Upper Caves | Joined by bewildered Wizard 10936 | -5/Upper Caves | Identified Scatter Rocket Array 10968 | -5/Upper Caves | Joined by bewildered Wizard 10969 | -5/Upper Caves | Joined by bewildered Wizard 10969 | -5/Upper Caves | Lost 3 parts (1n1u1w) 10970 | -5/Upper Caves | Joined by bewildered Wizard 10982 | -5/Upper Caves | Joined by bewildered Wizard 11008 | -5/Upper Caves | Discovered new exit (range 16) 11038 | -5/Upper Caves | Identified exit to Zhirov 11089 | -5/Upper Caves | Entered Zhirov 11089 | -5/Zhirov | Accompanied by 3 allies 11089 | -5/Zhirov | Discovered new exit (range 3) 11096 | -5/Zhirov | Met Zhirov 11105 | -5/Zhirov | Learned location of Testing (-3) 11105 | -5/Zhirov | Learned location of Command (-1) 11107 | -5/Zhirov | Zhirov requested help retrieving the SGEMP Prototype 11113 | -5/Zhirov | Found Alien Artifact 11113 | -5/Zhirov | Identified Integrated Reactor 11113 | -5/Zhirov | Installed Integrated Reactor, increased core energy generation (+10) 11150 | -5/Zhirov | Found Alien Artifact 11165 | -5/Zhirov | Identified exit to Proximity Caves 11170 | -5/Zhirov | Entered Proximity Caves 11170 | -4/Proximity Caves | Accompanied by 3 allies 11226 | -4/Proximity Caves | Learned location of 1 exit from Research 11237 | -4/Proximity Caves | Joined by bewildered Wizard 11238 | -4/Proximity Caves | Joined by bewildered Wizard 11282 | -4/Proximity Caves | Spotted B-86 Titan 11311 | -4/Proximity Caves | Allies destroyed B-86 Titan 11351 | -4/Proximity Caves | Entered Factory 11351 | -4/Factory | Accompanied by 4 allies 11351 | -4/Factory | Evolved 2 slots: Utility x2 11352 | -4/Factory | Identified exit to Upper Caves 11353 | -4/Factory | Loaded intel: 26 terminal locations 11381 | -4/Factory | Joined by bewildered Wizard 11387 | -4/Factory | Loaded intel: 8 recycling unit locations 11387 | -4/Factory | Learned location of Protoforge (-2) 11405 | -4/Factory | Joined by bewildered Wizard 11411 | -4/Factory | Identified exit to Armory 11424 | -4/Factory | Garrison activated, responded to threat 11450 | -4/Factory | Lost 3 allies 11462 | -4/Factory | Garrison activated, responded to threat 11532 | -4/Factory | Lost 5 allies 11565 | -4/Factory | Joined by bewildered Wizard 11565 | -4/Factory | Joined by bewildered Wizard 11596 | -4/Factory | Core integrity fell below 50% 11601 | -4/Factory | Entered Armory 11602 | -4/Armory | Met VL-GR5, who suggested a friendly competition 11631 | -4/Armory | Lost 17 parts (1p6n7u3w) 11695 | -4/Armory | Botcube activated 11710 | -4/Armory | Identified Enh. Scrap Shield 11736 | -4/Armory | Lost the competition with VL-GR5 11751 | -4/Armory | Identified Transdimensional Reconstructor 11751 | -4/Armory | Warped through subspace to slip node 11751 | -4/Armory | Discovered new exit (range 1) 11765 | -4/Armory | Entered Lab 11765 | -4/Lab | Discovered new exit (range 9) 11768 | -4/Lab | Hidden lab's door opened automatically 11768 | -4/Lab | Sensor layout match revealed 11769 | -4/Lab | Gained access to the hidden lab's interior 11769 | -4/Lab | Detected by scanners 11776 | -4/Lab | Found Integrated Reactor 11776 | -4/Lab | Installed Integrated Reactor, increased core energy generation (+10) 11784 | -4/Lab | Found Alien Artifact 11784 | -4/Lab | Identified Core Regenerator 11784 | -4/Lab | Used Core Regenerator, restored core integrity (+287) 11790 | -4/Lab | Found Transdimensional Reconstructor 11801 | -4/Lab | Found Prototype Hackware 11801 | -4/Lab | Identified Deep Network Scanner 11803 | -4/Lab | Found Prototype Protection 11804 | -4/Lab | Identified Med. Regenerative Plating 11807 | -4/Lab | Found Prototype Energy Gun 11820 | -4/Lab | Confronted by A5 11825 | -4/Lab | Entered Research 11825 | -3/Research | Evolved 2 slots: Propulsion x2 11826 | -3/Research | Identified exit to Research 11826 | -3/Research | Identified exit to Testing 11827 | -3/Research | Loaded intel: 2 garrison access locations 11839 | -3/Research | Found Prototype Device 11839 | -3/Research | Identified Exp. Focal Shield 11973 | -3/Research | Joined by bewildered Wizard 11975 | -3/Research | Joined by bewildered Wizard 12014 | -3/Research | Entered Testing 12061 | -3/Testing | Rewired PG-SGZWFA5KW6 12101 | -3/Testing | Protovariant out of control (PY-ZUPJZY9Q7G) 12101 | -3/Testing | Unleashed a protovariant (PY-ZUPJZY9Q7G) 12179 | -3/Testing | Discovered exit to Research (range 10) 12183 | -3/Testing | Found Prototype Processor 12183 | -3/Testing | Identified Spectral Analyzer 12270 | -3/Testing | Intercept squad dispatched 12277 | -3/Testing | Spotted Tracker 12278 | -3/Testing | Spotted Tracker 12281 | -3/Testing | Spotted Striker 12281 | -3/Testing | Spotted Striker 12284 | -3/Testing | Spotted Alpha 7 12286 | -3/Testing | Stole the SGEMP Prototype 12287 | -3/Testing | Warped through subspace 12310 | -3/Testing | Build established: Hacker-Ninja 12323 | -3/Testing | Entered Research 12323 | -2/Research | Evolved 2 slots: Propulsion x1, Utility x1 12324 | -2/Research | Identified exit to Access 12367 | -2/Research | Joined by bewildered Wizard 12367 | -2/Research | Joined by bewildered Wizard 12367 | -2/Research | Joined by bewildered Wizard 12371 | -2/Research | Loaded intel: 5 recycling unit locations 12394 | -2/Research | Found Prototype Processor 12394 | -2/Research | Identified Exp. Terrain Scan Processor 12414 | -2/Research | Joined by bewildered Wizard 12416 | -2/Research | Found Prototype Device 12416 | -2/Research | Identified Adv. EM Shield 12431 | -2/Research | Spotted B-90 Cyclops 12454 | -2/Research | Intercept squad dispatched 12470 | -2/Research | Spotted Tracker 12491 | -2/Research | Spotted Tracker 12499 | -2/Research | Spotted Combat Programmer 12523 | -2/Research | Core integrity fell below 50% 12524 | -2/Research | Spotted Combat Programmer 12530 | -2/Research | Core integrity fell below 20% 12533 | -2/Research | Destroyed by Combat Programmer with EMDS Last Messages --------------- Slug penetrates Wall. Slammed into H-88 Terminator. Penetrated by EMDS Slug. >> DECODED: Adv. Melee Analysis Suite location. The unstable cave ceiling collapses. K-01 Serf collects debris. U-05 Engineer lays Concrete. Penetrated by EMDS Slug. Adv. Signal Interpreter destroyed. 0b10 Decoder Chip [Generic] destroyed. Penetrated by Slug. U-05 Engineer builds a Wall. Penetrated by EMDS Slug. EMDS Slug penetrates H-88 Terminator. Slug penetrates Wall. Slug penetrates Tracker. Combat Programmer resets H-88 Terminator, system corruption cleaned. Penetrated by EMDS Slug. Penetrated by Slug. Penetrated by EMDS Slug. Map ----- +----------------------------------------------------+ | ?????????????????????????????????????????????????? | | ?????????????????????????????????????????????????? | | ???????????????????????? ?????????????????????? | | ???????????????????????? ?????????????????????? | | ???????????????????????? ?????????????????????? | | ???????????????????????# #????? ??????????????? | | ???????????????????????# u#????? ??????????????? | | ???????????????????????# #????? ??????????????? | | ???????????????????????# #????? ??????????????? | | ???????????????????????# #????? ??????????????? | | ???????????????????????# #????? ??????????????? | | ???????????????????????# #????? ??????????????? | | ???????????????????????# #????? ??????????????? | | ???????????????????????# #????? ??????????????? | | ???????????????????????# #????? ??????????????? | | ???????????????????????# #????? ??????????????? | | ???????????????????????# #????# #?????????????? | | ???????????????????????# #????# #????????????## | | ???????????????????????# #????# #????????????# | | ???????????????????????# #????# #????????????# | | ???????????????????????# #????# #????????????# | | ???????????????????????# #????# #???????????## | | ???????????????????????# #????# #???????????# | | ???????????????????????# #???## ## ! #### | | ???????????????????????# ###### ######+###### | | ???? ###### @ k### | | ???? | | ???? ##### ####### s p | | ???????????##?????????# ??????# h | | ??????????????????????#???????#########;####### | | ??????????????????????????????? # #### | | ?????????????????????????????????# #??# | | ?????????????????????????????????# """ """ #??# | | ?????????????????????????????????# """ """ #??# | | ?????????????????????????????????# """ """ #??# | | ?????????????????????????????????# #??# | | ?????????????????????????????????# #??# | | ?????????????????????????????????# #??# | | ?????????????????????????????????# ""Y " #??# | | ?????????????????????????????????# """"" #??# | | ?????????????????????????????????# #??? | | ?????????????????????????????????# #??? | | ?????????????????????????????????##############??? | | ?????????????????????????????????????????????????? | | ?????????????????????????????????????????????????? | | ?????????????????????????????????????????????????? | | ?????????????????????????????????????????????????? | | ?????????????????????????????????????????????????? | | ?????????????????????????????????????????????????? | | ?????????????????????????????????????????????????? | +----------------------------------------------------+ Best States ------------- Heat Dissipation 68 Energy Generation 52 Energy Capacity 400 Matter Stores 300 Matter Capacity 300 Sight Range 24 Robot Scan Range 18 Terrain Scan Density 110 Cloak Strength 4 Armor Coverage 1025 Resistance: KI 30 Propulsion Shielding 90 Melee Speed Boost 20 Evasion (%) 71 Melee Accuracy 8 Recoil Reduction 2 Offensive Hacking 39 Defensive Hacking 24 Item Schematics ----------------- Assault Drone Bay | -5/Zhirov | Free Exp. Heat Sink | -5/Zhirov | Free Exp. Optical Array | -5/Zhirov | Free Imp. Arc Thrower | -5/Zhirov | Free Robot Schematics ------------------ None Fabricated ------------ Nothing Repaired ---------- Nothing Alien Tech Used ----------------- Integrated Reactor Transdimensional Reconstructor Core Regenerator Achievements -------------- None Challenges ------------ None Game ------ Seed ShieldAutogunScrapsphere Manual? 0 Play Time 02:37:45 Cumulative 126.4 hours Start 2025.06.21 @ 18:39:35 End 2025.06.21 @ 21:54:22 Sessions 1 Manual Loads 0 Difficulty Rogue Special Mode None Game No. 133 Rogue 133 Adventurer 0 Explorer 0 Win Type - Total 2 Types 1/0/0/1/0/0/0/0/0/0 Lore% 61 Gallery% 57 Achievement% 51 Wizard Run 0 Options --------- Layout 1 ASCII 0 Keyboard 1 Movement Numpad Keybinds 0 Fullscreen 1 Font 32/SmallcapsGlow Map View 77x35 Zoom Use 0% Tactical HUD 0 Map Filters NONE Filters NONE Steam 1 RUN: 9049d714-8a1d-49c8-bd74-0a2cd018710d